fUSD/lending_fUSD_20250623
["ID","MTS","AMOUNT","RATE_DAILY","PERIOD"]
[367154709,1750677042677,-720.0,0.00022083,2]
[367154710,1750677042687,-250.0,0.00022111,2]
[367154711,1750677042698,-250.0,0.00022115,2]
[367154712,1750677042709,-250.0,0.00022121,2]
[367154713,1750677042719,-1000.0,0.00022138,2]
[367154714,1750677042730,-151.0,0.00022139,7]
[367154715,1750677042741,-151.0,0.00022139,7]
[367154716,1750677042751,-249.003524,0.00022139,7]
[367154717,1750677042761,-331.68,0.00022151,2]
[367154718,1750677042773,-2786.6291088,0.00022189,2]
[367154720,1750677042783,-2000.0,0.000222,2]
[367154721,1750677042793,-151.0,0.000222,7]
[367154722,1750677042803,-266.788178,0.000222,7]
[367154723,1750677042813,-266.788178,0.000222,7]
[367154724,1750677042823,-160.649019,0.000222,7]
[367154725,1750677042833,-160.649019,0.000222,7]
[367154726,1750677042843,-151.0,0.000222,7]
[367154727,1750677042853,-151.0,0.000222,7]
[367154728,1750677042864,-151.0,0.00022224,7]
[367154729,1750677042874,-151.0,0.00022282,7]
[367154730,1750677042884,-151.0,0.00022282,7]
[367154731,1750677042893,-151.0,0.00022282,7]
[367154732,1750677042903,-152.318668,0.00022282,7]
[367154733,1750677042912,-151.0,0.00022282,7]
[367154734,1750677042922,-151.0,0.00022282,7]
[367154735,1750677042932,-159.748951,0.00022282,7]
[367154736,1750677042942,-159.748951,0.00022282,7]
[367154737,1750677042951,-151.0,0.00022282,7]
[367154738,1750677042962,-151.0,0.00022282,7]
[367154739,1750677042972,-151.0,0.00022282,7]
[367154740,1750677042983,-151.0,0.00022282,7]
[367154741,1750677042993,-151.0,0.00022282,7]
[367154742,1750677043003,-176.746423,0.00022282,7]
[367154743,1750677043014,-176.746423,0.00022282,7]
[367154744,1750677043024,-151.0,0.00022282,7]
[367154745,1750677043035,-151.0,0.00022282,7]
[367154746,1750677043046,-150.0,0.00022315,2]
[367154747,1750677043056,-150.0,0.00022315,2]
[367154748,1750677043067,-4504.0816069,0.00022378,2]
[367154749,1750677043077,-151.0,0.00022378,7]
[367154750,1750677043087,-151.0,0.00022378,7]
[367154751,1750677043097,-151.0,0.00022378,7]
[367154752,1750677043108,-1983.513076,0.00022378,7]
[367154753,1750677043120,-299.653636,0.00022378,7]
[367154754,1750677043130,-1983.513076,0.00022378,7]
[367154755,1750677043140,-299.653636,0.00022378,7]
[367154756,1750677043150,-481.717289,0.00022378,7]
[367154772,1750677043476,-481.717289,0.00022378,7]
[367154773,1750677043487,-679.042121,0.00022378,7]
[367154775,1750677043497,-679.042121,0.00022378,7]
[367154777,1750677043507,-180.189298,0.00022384,7]
[367154778,1750677043516,-180.189298,0.00022384,7]
[367154779,1750677043526,-151.0,0.00022384,7]
[367154780,1750677043536,-151.0,0.00022384,7]
[367154781,1750677043546,-151.0,0.00022384,7]
[367154782,1750677043556,-151.0,0.00022384,7]
[367154783,1750677043565,-151.0,0.00022384,7]
[367154784,1750677043575,-553.126101,0.00022384,7]
[367154785,1750677043585,-151.0,0.00022384,7]
[367154786,1750677043594,-151.0,0.00022384,7]
[367154787,1750677043605,-834.59255148,0.00022384,7]
[367154788,1750677043615,-151.0,0.0002245,7]
[367154789,1750677043625,-522.3,0.0002245,2]
[367154790,1750677043635,-157.741831,0.0002261,7]
[367154791,1750677043646,-305.010561,0.0002261,7]
[367154792,1750677043655,-305.010561,0.0002261,7]
[367154793,1750677043666,-2500.0,0.00022611,2]
[367154794,1750677043676,-2786.6291088,0.00022644,2]
[367154795,1750677043686,-151.0,0.00022701,7]
[367154796,1750677043696,-151.0,0.00022701,7]
[367154797,1750677043706,-276.997066,0.00022701,7]
[367154798,1750677043716,-176.746423,0.00022701,7]
[367154799,1750677043726,-151.0,0.00022701,7]
[367154800,1750677043736,-176.746423,0.00022701,7]
[367154801,1750677043745,-151.0,0.00022701,7]
[367154802,1750677043755,-151.0,0.00022701,7]
[367154803,1750677043764,-221.941535,0.00022701,7]
[367154804,1750677043774,-151.0,0.00022701,7]
[367154805,1750677043783,-1983.513076,0.00022701,7]
[367154806,1750677043794,-299.653636,0.00022701,7]
[367154807,1750677043803,-1983.513076,0.00022701,7]
[367154808,1750677043813,-151.0,0.00022701,7]
[367154809,1750677043823,-299.653636,0.00022701,7]
[367154810,1750677043833,-151.0,0.00022701,7]
[367154811,1750677043843,-481.717289,0.00022701,7]
[367154812,1750677043852,-481.717289,0.00022701,7]
[367154813,1750677043862,-679.042121,0.00022701,7]
[367154814,1750677043872,-679.042121,0.00022701,7]
[367154815,1750677043881,-305.010561,0.00022701,7]
[367154816,1750677043891,-305.010561,0.00022701,7]
[367154817,1750677043901,-192.521954,0.00022701,7]
[367154818,1750677043910,-151.0,0.00022701,7]
[367154819,1750677043920,-151.0,0.00022701,7]
[367154820,1750677043929,-151.0,0.00022701,2]
[367154821,1750677043938,-338.06867366,0.00022701,2]
[367154822,1750677043948,-221.01897641,0.00022701,2]
[367154823,1750677043957,-500.0,0.00022701,2]
[367154824,1750677043967,-212.5793232,0.00022701,2]
[367154825,1750677043976,-7142.856,0.00022701,2]
[367154826,1750677043986,-500.0,0.00022701,2]
[367154827,1750677043995,-500.0,0.00022701,2]
[367154828,1750677044004,-500.0,0.00022701,2]
[367154829,1750677044014,-500.0,0.00022701,2]
[367154830,1750677044024,-500.0,0.00022701,2]
[367154831,1750677044034,-500.0,0.00022701,2]
[367154832,1750677044043,-500.0,0.00022701,2]
[367154833,1750677044053,-1000.0,0.00022701,2]
[367154834,1750677044062,-500.0,0.00022701,2]
[367154835,1750677044071,-1000.0,0.00022701,2]
[367154836,1750677044081,-500.0,0.00022701,2]
[367154837,1750677044090,-621.80024345,0.00022701,2]
[367154838,1750677044100,-500.0,0.00022701,2]
[367154839,1750677044109,-1000.0,0.00022701,2]
[367154840,1750677044119,-500.0,0.00022701,2]
[367154841,1750677044128,-500.0,0.00022701,2]
[367154842,1750677044138,-1000.0,0.00022701,2]
[367154843,1750677044148,-500.0,0.00022701,2]
[367154844,1750677044157,-500.0,0.00022701,2]
[367154845,1750677044167,-1000.0,0.00022701,2]
[367154846,1750677044176,-500.0,0.00022701,2]
[367154847,1750677044186,-500.0,0.00022701,2]
[367154848,1750677044195,-500.0,0.00022701,2]
[367154849,1750677044205,-1000.0,0.00022701,2]
[367154850,1750677044216,-500.0,0.00022701,2]
[367154851,1750677044225,-1000.0,0.00022701,2]
[367154852,1750677044234,-500.0,0.00022701,2]
[367154853,1750677044244,-1000.0,0.00022701,2]
[367154854,1750677044254,-500.0,0.00022701,2]
[367154855,1750677044263,-1000.0,0.00022701,2]
[367154856,1750677044273,-500.0,0.00022701,2]
[367154857,1750677044283,-1000.0,0.00022701,2]
[367154858,1750677044292,-500.0,0.00022701,2]
[367154859,1750677044302,-1000.0,0.00022701,2]
[367154860,1750677044311,-151.0,0.00022701,2]
[367154861,1750677044321,-500.0,0.00022701,2]
[367154862,1750677044331,-1101.6306857,0.00022701,2]
[367154863,1750677044341,-151.0,0.00022701,2]
[367154864,1750677044351,-500.0,0.00022701,2]
[367154865,1750677044361,-257.49157539,0.00022701,2]
[367154866,1750677044370,-207.4,0.00022701,2]
[367154867,1750677044379,-697.36972576,0.00022701,2]
[367154868,1750677044389,-300.0,0.00022701,2]
[367154869,1750677044398,-300.0,0.00022701,2]
[367154870,1750677044407,-400.0,0.00022701,2]
[367154871,1750677044417,-301.999999,0.00022731,7]
[367154872,1750677044427,-151.0,0.00022731,7]
[367154873,1750677044436,-176.746423,0.00022731,7]
[367154874,1750677044445,-155.061004,0.00022731,7]
[367154875,1750677044454,-176.746423,0.00022731,7]
[367154876,1750677044463,-151.0,0.00022731,7]
[367154877,1750677044472,-151.0,0.00022731,7]
[367154878,1750677044481,-151.0,0.00022731,7]
[367154879,1750677044490,-151.0,0.00022756,7]
[367154880,1750677044499,-151.0,0.00022756,7]
[367154881,1750677044508,-1983.513076,0.00022756,7]
[367154882,1750677044518,-299.653636,0.00022756,7]
[367154883,1750677044528,-1983.513076,0.00022756,7]
[367154884,1750677044537,-299.653636,0.00022756,7]
[367154885,1750677044547,-481.717289,0.00022756,7]
[367154886,1750677044557,-481.717289,0.00022756,7]
[367154887,1750677044566,-679.042121,0.00022756,7]
[367154888,1750677044575,-679.042121,0.00022756,7]
[367154889,1750677044584,-7407.141672,0.00022756,2]
[367154890,1750677044594,-812.38245425,0.00022787,2]
[367154891,1750677044603,-7681.20591386,0.00022811,2]
[367154892,1750677044611,-1000.0,0.00022861,5]
[367154893,1750677044621,-305.010561,0.00022861,7]
[367154894,1750677044631,-305.010561,0.00022861,7]
[367154895,1750677044644,-7965.41053268,0.00022866,2]
[367154896,1750677044653,-4504.0816069,0.00022878,2]
[367154897,1750677044663,-151.0,0.00022883,7]
[367154898,1750677044673,-266.788178,0.00022883,7]
[367154899,1750677044684,-266.788178,0.00022883,7]
[367154900,1750677044694,-160.649019,0.00022883,7]
[367154901,1750677044704,-160.649019,0.00022883,7]
[367154902,1750677044715,-151.0,0.00022921,7]
[367154903,1750677044724,-176.746423,0.00022921,7]
[367154904,1750677044734,-176.746423,0.00022921,7]
[367154905,1750677044743,-151.0,0.00022921,7]
[367154906,1750677044753,-151.0,0.00022921,7]
[367154907,1750677044762,-151.0,0.00022921,7]
[367154908,1750677044772,-1983.513076,0.00022921,7]
[367154909,1750677044781,-299.653636,0.00022921,7]
[367154910,1750677044791,-1983.513076,0.00022921,7]
[367154911,1750677044800,-151.0,0.00022921,7]
[367154912,1750677044810,-299.653636,0.00022921,7]
[367154913,1750677044820,-151.0,0.00022921,7]
[367154914,1750677044829,-481.717289,0.00022921,7]
[367154915,1750677044839,-481.717289,0.00022921,7]
[367154916,1750677044848,-679.042121,0.00022921,7]
[367154917,1750677044858,-679.042121,0.00022921,7]
[367154918,1750677044867,-8260.13072239,0.00022921,2]
[367154919,1750677044877,-349.0,0.00022946,2]
[367154920,1750677044886,-155.173614,0.00022969,7]
[367154921,1750677044895,-151.0,0.00022969,7]
[367154922,1750677044905,-305.010561,0.00022976,7]
[367154923,1750677044914,-305.010561,0.00022976,7]
[367154924,1750677044923,-6724.62082716,0.00022976,2]
[367154925,1750677044932,-162.0,0.00023014,7]
[367154926,1750677044942,-2500.0,0.00023082,2]
[367154927,1750677044951,-151.0,0.00023087,7]
[367154928,1750677044960,-151.0,0.00023087,7]
[367154929,1750677044969,-151.0,0.00023087,7]
[367154930,1750677044979,-356.93356294,0.000231,8]
[367154931,1750677044988,-356.93356284,0.000231,8]
[367154932,1750677044997,-356.93356284,0.000231,8]
[367154933,1750677045006,-356.93356284,0.000231,8]
[367154934,1750677045015,-356.93356284,0.000231,8]
[367154935,1750677045026,-2786.6291088,0.000231,2]
[367154936,1750677045036,-150.0,0.00023142,4]
[367154937,1750677045045,-731.11541149,0.000232,2]
[367154938,1750677045054,-151.0,0.00023205,7]
[367154939,1750677045064,-553.126101,0.00023205,7]
[367154940,1750677045073,-151.0,0.00023205,7]
[367154941,1750677045083,-151.0,0.00023205,7]
[367154942,1750677045093,-500.0,0.00023225,2]
[367154943,1750677045104,-1674.0,0.00023245,2]
[367154944,1750677045113,-151.0,0.00023245,7]
[367154945,1750677045124,-356.93356284,0.00023314,9]
[367154946,1750677045133,-151.0,0.00023368,7]
[367154947,1750677045142,-151.0,0.00023368,7]
[367154948,1750677045151,-151.0,0.00023368,7]
[367154949,1750677045161,-151.0,0.00023368,7]
[367154950,1750677045170,-159.748951,0.00023368,7]
[367154951,1750677045179,-159.748951,0.00023368,7]
[367154952,1750677045188,-153.150245,0.00023368,7]
[367154953,1750677045197,-180.189298,0.00023368,7]
[367154954,1750677045206,-180.189298,0.00023368,7]
[367154955,1750677045215,-151.0,0.00023368,7]
[367154956,1750677045225,-151.0,0.00023368,7]
[367154957,1750677045235,-151.0,0.00023368,7]
[367154958,1750677045245,-151.0,0.00023368,7]
[367154959,1750677045254,-151.0,0.00023368,7]
[367154960,1750677045263,-151.0,0.00023368,7]
[367154961,1750677045272,-553.126101,0.00023368,7]
[367154962,1750677045282,-553.126101,0.00023368,7]
[367154963,1750677045292,-266.788178,0.00023368,7]
[367154964,1750677045301,-168.562048,0.00023368,7]
[367154965,1750677045311,-266.788178,0.00023368,7]
[367154966,1750677045321,-160.649019,0.00023368,7]
[367154967,1750677045330,-160.649019,0.00023368,7]
[367154968,1750677045340,-151.0,0.00023368,7]
[367154969,1750677045349,-151.0,0.00023368,7]
[367154970,1750677045358,-176.746423,0.00023368,7]
[367154971,1750677045368,-176.746423,0.00023368,7]
[367154972,1750677045377,-176.746423,0.00023368,7]
[367154973,1750677045387,-176.746423,0.00023368,7]
[367154974,1750677045396,-151.0,0.00023368,7]
[367154975,1750677045406,-151.0,0.00023368,7]
[367154976,1750677045415,-151.0,0.00023368,7]
[367154977,1750677045424,-151.0,0.00023368,7]
[367154978,1750677045434,-151.0,0.00023368,7]
[367154979,1750677045443,-151.0,0.00023368,7]
[367154980,1750677045452,-1983.513076,0.00023368,7]
[367154981,1750677045462,-1983.513076,0.00023368,7]
[367154982,1750677045471,-299.653636,0.00023368,7]
[367154983,1750677045480,-299.653636,0.00023368,7]
[367154984,1750677045489,-1983.513076,0.00023368,7]
[367154985,1750677045499,-151.0,0.00023368,7]
[367154986,1750677045511,-151.0,0.00023368,7]
[367154987,1750677045521,-1983.513067,0.00023368,7]
[367154988,1750677045532,-299.653636,0.00023368,7]
[367154989,1750677045542,-299.653641,0.00023368,7]
[367154990,1750677045552,-151.0,0.00023368,7]
[367154991,1750677045562,-165.262408,0.00023368,7]
[367154992,1750677045572,-481.717289,0.00023368,7]
[367154993,1750677045581,-481.717289,0.00023368,7]
[367154994,1750677045591,-481.717289,0.00023368,7]
[367154995,1750677045601,-481.717289,0.00023368,7]
[367154996,1750677045611,-679.042121,0.00023368,7]
[367154997,1750677045621,-679.042121,0.00023368,7]
[367154998,1750677045631,-679.042121,0.00023368,7]
[367154999,1750677045643,-679.042121,0.00023368,7]
[367155000,1750677045652,-305.010561,0.00023368,7]
[367155001,1750677045662,-305.010561,0.00023368,7]
[367155002,1750677045672,-1332.54,0.00023368,2]
[367155003,1750677045682,-9999.99,0.00023368,2]
[367155004,1750677045692,-999.99,0.00023368,2]
[367155005,1750677045701,-9999.99,0.00023368,2]
[367155006,1750677045711,-150.99,0.00023368,2]
[367155007,1750677045721,-4504.0816069,0.00023378,2]
[367155008,1750677045731,-180.189298,0.00023382,7]
[367155009,1750677045740,-180.189298,0.00023382,7]
[367155010,1750677045749,-151.0,0.00023382,7]
[367155011,1750677045759,-151.0,0.00023382,7]
[367155012,1750677045768,-219.810334,0.00023388,7]
[367155013,1750677045853,-151.0,0.00023388,7]
[367155014,1750677045863,-153.826202,0.00023388,7]
[367155015,1750677045872,-1205.20055115,0.00023418,2]
[367155016,1750677045881,-301.0,0.00023506,2]
[367155017,1750677045891,-586.0,0.00023511,2]
[367155018,1750677045900,-151.0,0.00023512,7]
[367155019,1750677045909,-151.0,0.00023512,7]
[367155020,1750677045919,-151.0,0.00023512,7]
[367155021,1750677045928,-156.673229,0.00023512,7]
[367155022,1750677045938,-266.788178,0.00023512,7]
[367155023,1750677045948,-266.788178,0.00023512,7]
[367155024,1750677045958,-160.649019,0.00023512,7]
[367155025,1750677045968,-160.649019,0.00023512,7]
[367155026,1750677045977,-2786.6291088,0.00023556,2]
[367155027,1750677045986,-834.59255148,0.00023563,2]
[367155028,1750677045996,-167.15,0.0002358,2]
[367155029,1750677046005,-151.0,0.00023587,7]
[367155030,1750677046015,-963.832622,0.00023587,7]
[367155031,1750677046025,-464.278375,0.00023587,7]
[367155032,1750677046034,-464.278375,0.00023587,7]
[367155033,1750677046044,-151.0,0.00023587,7]
[367155034,1750677046054,-305.010561,0.00023587,7]
[367155035,1750677046063,-305.010561,0.00023587,7]
[367155036,1750677046072,-586.0,0.00023587,2]
[367155037,1750677046082,-706.48,0.00023588,2]
[367155038,1750677046091,-151.0,0.00023588,7]
[367155039,1750677046100,-151.0,0.00023588,7]
[367155040,1750677046109,-159.748951,0.00023588,7]
[367155041,1750677046118,-159.748951,0.00023588,7]
[367155042,1750677046127,-151.0,0.00023588,7]
[367155043,1750677046137,-151.0,0.00023588,7]
[367155045,1750677046146,-553.126101,0.00023588,7]
[367155046,1750677046155,-553.126101,0.00023588,7]
[367155047,1750677046164,-151.0,0.00023588,7]
[367155048,1750677046176,-706.48,0.00023594,2]
[367155049,1750677046187,-679.042121,0.000236,7]
[367155050,1750677046196,-679.042122,0.000236,7]
[367155051,1750677046205,-706.48,0.000236,2]
[367155052,1750677046216,-1308.75121735,0.000236,2]
[367155053,1750677046227,-706.48,0.00023606,2]
[367155054,1750677046236,-706.48,0.00023613,2]
[367155055,1750677046245,-151.0,0.00023614,7]
[367155056,1750677046255,-176.746423,0.00023614,7]
[367155057,1750677046264,-176.746418,0.00023614,7]
[367155058,1750677046274,-151.0,0.00023614,7]
[367155059,1750677046284,-151.0,0.00023614,7]
[367155060,1750677046293,-706.48,0.00023619,2]
[367155062,1750677046310,-706.48,0.00023625,2]
[367155064,1750677046319,-706.48,0.00023631,2]
[367155066,1750677046328,-203.959475,0.00023636,7]
[367155068,1750677046338,-586.0,0.00023636,2]
[367155070,1750677046348,-706.48,0.00023637,2]
[367155072,1750677046357,-151.0,0.00023638,7]
[367155073,1750677046366,-706.48,0.00023644,2]
[367155076,1750677046376,-706.48,0.0002365,2]
[367155077,1750677046385,-180.189298,0.0002365,7]
[367155079,1750677046394,-180.189298,0.0002365,7]
[367155081,1750677046403,-151.0,0.0002365,7]
[367155083,1750677046412,-706.48,0.00023656,2]
[367155085,1750677046422,-706.48,0.00023662,2]
[367155087,1750677046432,-151.0,0.00023668,7]
[367155089,1750677046441,-266.788178,0.00023668,7]
[367155091,1750677046451,-266.788178,0.00023668,7]
[367155093,1750677046460,-160.649019,0.00023668,7]
[367155095,1750677046471,-160.649019,0.00023668,7]
[367155097,1750677046480,-706.48,0.00023669,2]
[367155099,1750677046489,-706.48,0.00023675,2]
[367155101,1750677046498,-204.0,0.0002368,7]
[367155103,1750677046508,-706.48,0.00023681,2]
[367155105,1750677046517,-157.449378,0.00023681,7]
[367155107,1750677046526,-305.010561,0.00023684,7]
[367155109,1750677046536,-305.010563,0.00023684,7]
[367155111,1750677046545,-586.0,0.00023685,2]
[367155113,1750677046554,-586.0,0.00023686,2]
[367155115,1750677046564,-706.48,0.00023687,2]
[367155117,1750677046573,-3354.88558378,0.0002369,2]
[367155119,1750677046582,-151.0,0.0002369,7]
[367155121,1750677046591,-151.0,0.0002369,7]
[367155123,1750677046600,-151.0,0.0002369,7]
[367155125,1750677046610,-155.385142,0.0002369,7]
[367155127,1750677046619,-553.126101,0.0002369,7]
[367155129,1750677046628,-553.126101,0.0002369,7]
[367155131,1750677046642,-151.0,0.0002369,7]
[367155133,1750677046651,-1212.46083,0.0002369,4]
[367155135,1750677046661,-706.48,0.00023693,2]
[367155137,1750677046670,-706.48,0.000237,2]
[367155139,1750677046679,-706.48,0.00023706,2]
[367155141,1750677046688,-586.0,0.00023738,2]
[367155143,1750677046698,-151.95333062,0.00023781,2]
[367155145,1750677046707,-356.93356284,0.00023797,9]
[367155147,1750677046716,-586.0,0.00023829,2]
[367155149,1750677046725,-163.31,0.00023836,2]
[367155151,1750677046734,-4504.0816069,0.00023878,2]
[367155152,1750677046743,-151.0,0.00023881,7]
[367155154,1750677046753,-151.0,0.00023881,7]
[367155156,1750677046762,-159.748951,0.00023881,7]
[367155158,1750677046771,-159.748951,0.00023881,7]
[367155160,1750677046780,-180.189298,0.00023881,7]
[367155162,1750677046790,-180.189298,0.00023881,7]
[367155164,1750677046799,-151.0,0.00023881,7]
[367155166,1750677046808,-253.551659,0.00023881,7]
[367155167,1750677046817,-151.0,0.00023881,7]
[367155169,1750677046827,-266.788178,0.00023881,7]
[367155171,1750677046836,-266.788178,0.00023881,7]
[367155173,1750677046845,-160.649019,0.00023881,7]
[367155175,1750677046856,-160.649019,0.00023881,7]
[367155177,1750677046865,-151.0,0.00023886,7]
[367155179,1750677046879,-150.0,0.00023896,2]
[367155181,1750677046888,-553.126101,0.00023898,7]
[367155183,1750677046897,-553.126101,0.00023898,7]
[367155185,1750677046906,-151.0,0.00023898,7]
[367155187,1750677046915,-152.394999,0.000239,7]
[367155189,1750677046925,-151.0,0.000239,7]
[367155191,1750677046934,-153.066625,0.000239,7]
[367155193,1750677046943,-152.085134,0.000239,7]
[367155195,1750677046952,-151.0,0.000239,7]
[367155197,1750677046961,-151.0,0.000239,7]
[367155198,1750677046969,-963.832622,0.000239,7]
[367155200,1750677046979,-151.885384,0.000239,7]
[367155202,1750677046988,-464.278375,0.000239,7]
[367155204,1750677046997,-464.278375,0.000239,7]
[367155206,1750677047006,-151.0,0.000239,7]
[367155208,1750677047016,-151.0,0.000239,7]
[367155211,1750677047028,-151.0,0.000239,7]
[367155213,1750677047037,-196.101713,0.000239,7]
[367155214,1750677047047,-209.134452,0.000239,7]
[367155216,1750677047056,-151.0,0.000239,7]
[367155218,1750677047065,-151.0,0.000239,7]
[367155220,1750677047074,-159.748951,0.000239,7]
[367155222,1750677047083,-159.748951,0.000239,7]
[367155224,1750677047092,-159.748951,0.000239,7]
[367155226,1750677047101,-159.748951,0.000239,7]
[367155228,1750677047110,-156.17677537,0.000239,2]
[367155230,1750677047119,-180.189298,0.000239,7]
[367155232,1750677047128,-180.189298,0.000239,7]
[367155234,1750677047138,-180.189298,0.000239,7]
[367155236,1750677047147,-180.189298,0.000239,7]
[367155238,1750677047156,-151.0,0.000239,7]
[367155240,1750677047165,-151.0,0.000239,7]
[367155242,1750677047174,-253.551659,0.000239,7]
[367155244,1750677047183,-253.551659,0.000239,7]
[367155245,1750677047193,-151.0,0.000239,7]
[367155247,1750677047204,-151.0,0.000239,7]
[367155249,1750677047213,-151.0,0.000239,7]
[367155251,1750677047222,-553.126101,0.000239,7]
[367155253,1750677047231,-553.126099,0.000239,7]
[367155255,1750677047239,-151.0,0.000239,7]
[367155257,1750677047251,-151.0,0.000239,7]
[367155259,1750677047270,-266.788178,0.000239,7]
[367155261,1750677047279,-266.788178,0.000239,7]
[367155263,1750677047289,-160.649019,0.000239,7]
[367155265,1750677047298,-160.649011,0.000239,7]
[367155267,1750677047307,-200.0,0.000239,8]
[367155269,1750677047316,-150.0,0.00023901,2]
[367155271,1750677047325,-180.189298,0.00023903,7]
[367155273,1750677047334,-180.189298,0.00023903,7]
[367155275,1750677047344,-253.551666,0.00023903,7]
[367155277,1750677047352,-150.0,0.00023948,2]
[367155279,1750677047363,-150.0,0.00023955,2]
[367155281,1750677047372,-150.0,0.00023958,2]
[367155283,1750677047382,-150.0,0.00023968,4]
[367155284,1750677047390,-587.0,0.00023984,2]
[367155286,1750677047400,-1000.0,0.0002399,2]
[367155288,1750677047409,-11968.20830238,0.00024,2]
[367155290,1750677047418,-108070.62116216,0.00024,3]
[367155292,1750677047428,-2000.0,0.00024,2]
[367155294,1750677047437,-2000.0,0.00024,2]
[367155296,1750677047446,-2000.0,0.00024,2]
[367155298,1750677047455,-2000.0,0.00024,2]
[367155300,1750677047466,-2000.0,0.00024,2]
[367155302,1750677047475,-2000.0,0.00024,2]
[367155304,1750677047484,-2000.0,0.00024,2]
[367155306,1750677047493,-2000.0,0.00024,2]
[367155308,1750677047503,-2000.0,0.00024,2]
[367155310,1750677047512,-2000.0,0.00024,2]
[367155312,1750677047522,-2000.0,0.00024,2]
[367155314,1750677047534,-2000.0,0.00024,2]
[367155316,1750677047543,-151.0,0.00024,7]
[367155318,1750677047552,-151.0,0.00024,7]
[367155320,1750677047562,-151.0,0.00024,7]
[367155322,1750677047571,-963.832622,0.00024,7]
[367155324,1750677047580,-464.278375,0.00024,7]
[367155325,1750677047589,-464.278375,0.00024,7]
[367155327,1750677047598,-151.0,0.00024,7]
[367155329,1750677047608,-151.0,0.00024,7]
[367155331,1750677047617,-151.0,0.00024,7]
[367155333,1750677047627,-151.0,0.00024,7]
[367155335,1750677047638,-284.542049,0.00024,7]
[367155337,1750677047648,-158.24,0.00024,2]
[367155339,1750677047657,-159.748951,0.00024,7]
[367155341,1750677047666,-159.748951,0.00024,7]
[367155343,1750677047675,-159.748951,0.00024,7]
[367155345,1750677047684,-159.748951,0.00024,7]
[367155347,1750677047693,-159.748951,0.00024,7]
[367155349,1750677047703,-159.748951,0.00024,7]
[367155351,1750677047713,-151.0,0.00024,7]
[367155352,1750677047722,-834.59255148,0.00024,3]
[367155354,1750677047731,-2786.6291088,0.00024012,2]
[367155356,1750677047740,-150.0,0.00024019,2]
[367155358,1750677047749,-150.0,0.00024032,2]
[367155360,1750677047759,-276.19908548,0.00024038,2]
[367155361,1750677047769,-150.0,0.00024044,2]
[367155362,1750677047778,-150.0,0.00024053,2]
[367155363,1750677047788,-2351.0,0.00024057,2]
[367155364,1750677047797,-150.0,0.00024062,2]
[367155365,1750677047807,-156.587,0.0002407,2]
[367155366,1750677047816,-215.0738,0.0002407,2]
[367155367,1750677047825,-150.0,0.00024102,2]
[367155368,1750677047834,-2427.19807808,0.00024112,2]
[367155369,1750677047843,-2427.19807807,0.00024112,2]
[367155370,1750677047853,-1000.0,0.00024114,2]
[367155371,1750677047862,-1000.0,0.00024115,2]
[367155372,1750677047871,-150.0,0.00024125,2]
[367155373,1750677047880,-150.0,0.00024135,2]